fUST/lending_fUST_20240721
["ID","MTS","AMOUNT","RATE_DAILY","PERIOD"]
[332742924,1721497850992,-500.0,0.00014246,2]
[332742925,1721497851002,-539.12,0.00014246,2]
[332742926,1721497851011,-1454.2,0.00014246,2]
[332742927,1721497851020,-366.79034814,0.00014246,2]
[332742928,1721497851030,-500.0,0.00014246,2]
[332742929,1721497851039,-607.01,0.00014246,2]
[332742930,1721497851048,-500.0,0.00014246,2]
[332742931,1721497851058,-500.0,0.00014246,2]
[332742932,1721497851068,-510.84,0.00014246,2]
[332742933,1721497851077,-500.0,0.00014246,2]
[332742934,1721497851087,-1174.51,0.00014246,2]
[332742935,1721497851099,-500.0,0.00014246,2]
[332742936,1721497851108,-500.0,0.00014246,2]
[332742937,1721497851118,-510.59,0.00014246,2]
[332742938,1721497851127,-500.0,0.00014246,2]
[332742939,1721497851136,-999.33,0.00014246,2]
[332742940,1721497851147,-500.0,0.00014246,2]
[332742941,1721497851156,-665.93,0.00014246,2]
[332742942,1721497851166,-500.0,0.00014246,2]
[332742943,1721497851177,-500.0,0.00014246,2]
[332742944,1721497851186,-604.92,0.00014246,2]
[332742945,1721497851196,-374.40785984,0.00014246,2]
[332742946,1721497851207,-500.0,0.00014246,2]
[332742947,1721497851218,-500.0,0.00014246,2]
[332742948,1721497851228,-868.0,0.00014246,2]
[332742949,1721497851238,-756.3,0.00014246,2]
[332742950,1721497851250,-500.0,0.00014246,2]
[332742951,1721497851263,-500.0,0.00014246,2]
[332742952,1721497851273,-500.0,0.00014246,2]
[332742953,1721497851282,-500.0,0.00014246,2]
[332742954,1721497851292,-940.27,0.00014246,2]
[332742955,1721497851302,-495.79692359,0.00014246,2]
[332742956,1721497851311,-509.6,0.00014246,2]
[332742957,1721497851322,-500.0,0.00014246,2]
[332742958,1721497851332,-500.0,0.00014246,2]
[332742959,1721497851346,-2549.67,0.00014246,2]
[332742960,1721497851355,-500.0,0.00014246,2]
[332742961,1721497851365,-500.0,0.00014246,2]
[332742962,1721497851374,-500.0,0.00014246,2]
[332742963,1721497851384,-818.31,0.00014246,2]
[332742964,1721497851393,-500.0,0.00014246,2]
[332742965,1721497851403,-394.64841131,0.00014246,2]
[332742966,1721497851412,-500.0,0.00014246,2]
[332742967,1721497851422,-500.0,0.00014246,2]
[332742968,1721497851432,-574.23,0.00014246,2]
[332742969,1721497851441,-500.0,0.00014246,2]
[332742970,1721497851451,-500.0,0.00014246,2]
[332742971,1721497851461,-500.0,0.00014246,2]
[332742972,1721497851473,-500.0,0.00014246,2]
[332742973,1721497851484,-841.0,0.00014246,2]
[332742974,1721497851494,-2435.34,0.00014246,2]
[332742975,1721497851504,-804.77,0.00014246,2]
[332742976,1721497851513,-784.4,0.00014246,2]
[332742977,1721497851525,-525.49173652,0.00014246,2]
[332742978,1721497851536,-500.0,0.00014246,2]
[332742979,1721497851546,-500.0,0.00014246,2]
[332742980,1721497851556,-500.0,0.00014246,2]
[332742981,1721497851565,-500.0,0.00014246,2]
[332742982,1721497851574,-515.61,0.00014246,2]
[332742983,1721497851584,-500.0,0.00014246,2]
[332742984,1721497851595,-500.0,0.00014246,2]
[332742985,1721497851604,-548.34,0.00014246,2]
[332742986,1721497851614,-1275.47,0.00014246,2]
[332742987,1721497851623,-173.50801192,0.00014246,2]
[332742988,1721497851632,-507.52,0.00014246,2]
[332742989,1721497851642,-500.0,0.00014246,2]
[332742990,1721497851652,-1664.78,0.00014246,2]
[332742991,1721497851661,-500.0,0.00014246,2]
[332742992,1721497851673,-616.72,0.00014246,2]
[332742993,1721497851683,-500.0,0.00014246,2]
[332742994,1721497851694,-2072.2,0.00014246,2]
[332742995,1721497851704,-547.52,0.00014246,2]
[332742996,1721497851716,-2846.75,0.00014246,2]
[332742997,1721497851726,-754.28,0.00014246,2]
[332742998,1721497851736,-500.0,0.00014246,2]
[332742999,1721497851746,-986.86,0.00014246,2]
[332743000,1721497851756,-529.69,0.00014246,2]
[332743001,1721497851765,-500.0,0.00014246,2]
[332743002,1721497851775,-568.18,0.00014246,2]
[332743003,1721497851785,-1077.52,0.00014246,2]
[332743004,1721497851796,-500.0,0.00014246,2]
[332743005,1721497851806,-3061.8,0.00014246,2]
[332743006,1721497851818,-500.0,0.00014246,2]
[332743007,1721497851827,-500.0,0.00014246,2]
[332743008,1721497851837,-884.27,0.00014246,2]
[332743009,1721497851849,-500.0,0.00014246,2]
[332743010,1721497851861,-547.4,0.00014246,2]
[332743011,1721497851872,-702.49,0.00014246,2]
[332743012,1721497851882,-500.0,0.00014246,2]
[332743013,1721497851891,-967.08,0.00014246,2]
[332743014,1721497851901,-500.0,0.00014246,2]
[332743015,1721497851912,-633.13,0.00014246,2]
[332743016,1721497851922,-529.69,0.00014246,2]
[332743017,1721497851931,-786.01,0.00014246,2]
[332743018,1721497851941,-500.0,0.00014246,2]
[332743019,1721497851953,-571.08,0.00014246,2]
[332743020,1721497851963,-500.0,0.00014246,2]
[332743021,1721497851973,-560.17,0.00014246,2]
[332743022,1721497851983,-1134.62,0.00014246,2]
[332743023,1721497851992,-876.5,0.00014246,2]
[332743024,1721497852001,-500.0,0.00014246,2]
[332743025,1721497852011,-500.0,0.00014246,2]
[332743026,1721497852021,-500.0,0.00014246,2]
[332743027,1721497852032,-500.0,0.00014246,2]
[332743028,1721497852042,-500.0,0.00014246,2]
[332743029,1721497852051,-720.75,0.00014246,2]
[332743030,1721497852060,-539.78,0.00014246,2]
[332743031,1721497852070,-513.65,0.00014246,2]
[332743032,1721497852079,-500.0,0.00014246,2]
[332743033,1721497852089,-3929.92,0.00014246,2]
[332743034,1721497852102,-1802.84,0.00014246,2]
[332743035,1721497852112,-1725.91,0.00014246,2]
[332743036,1721497852122,-500.0,0.00014246,2]
[332743037,1721497852134,-500.0,0.00014246,2]
[332743038,1721497852143,-1351.64,0.00014246,2]
[332743039,1721497852152,-1125.56,0.00014246,2]
[332743040,1721497852161,-500.0,0.00014246,2]
[332743041,1721497852170,-500.0,0.00014246,2]
[332743042,1721497852179,-500.0,0.00014246,2]
[332743043,1721497852189,-500.0,0.00014246,2]
[332743044,1721497852200,-500.0,0.00014246,2]
[332743045,1721497852212,-745.57,0.00014246,2]
[332743046,1721497852222,-500.0,0.00014246,2]
[332743047,1721497852231,-948.98,0.00014246,2]
[332743048,1721497852241,-500.0,0.00014246,2]
[332743049,1721497852251,-1453.34,0.00014246,2]
[332743050,1721497852263,-651.7,0.00014246,2]
[332743051,1721497852273,-500.0,0.00014246,2]
[332743052,1721497852283,-500.0,0.00014246,2]
[332743053,1721497852292,-500.0,0.00014246,2]
[332743054,1721497852303,-984.39,0.00014246,2]
[332743055,1721497852313,-500.0,0.00014246,2]
[332743056,1721497852324,-500.0,0.00014246,2]
[332743057,1721497852336,-1987.44,0.00014246,2]
[332743058,1721497852347,-500.0,0.00014246,2]
[332743059,1721497852358,-492.10481963,0.00014246,2]
[332743060,1721497853171,-500.0,0.00013698,2]
[332743061,1721497853181,-414.21224949,0.00013698,2]
[332743062,1721497853191,-500.0,0.00013698,2]
[332743063,1721497853200,-500.0,0.00013698,2]
[332743064,1721497853210,-500.0,0.00013698,2]
[332743065,1721497853220,-500.0,0.00013698,2]
[332743066,1721497853230,-1022.55,0.00013972,2]
[332743067,1721497853239,-500.0,0.00013972,2]
[332743068,1721497853249,-1365.56518037,0.00014246,2]
[332743069,1721497853263,-817.83,0.00014246,2]
[332743070,1721497853273,-857.17,0.00014246,2]
[332743071,1721497853282,-851.92,0.00014246,2]
[332743072,1721497853292,-500.0,0.00014246,2]
[332743073,1721497853302,-500.0,0.00014246,2]
[332743074,1721497853311,-500.0,0.00014246,2]
[332743075,1721497853322,-2605.46,0.00014246,2]
[332743076,1721497853331,-577.62,0.00014246,2]
[332743077,1721497853343,-500.0,0.00014246,2]
[332743078,1721497853353,-1673.93,0.00014246,2]
[332743079,1721497853362,-500.0,0.00014246,2]
[332743080,1721497853372,-500.0,0.00014246,2]
[332743081,1721497853381,-687.45,0.00014246,2]
[332743082,1721497853390,-572.41582763,0.00014246,2]
[332743083,1721497853400,-690.27,0.00014246,2]
[332743084,1721497853410,-1635.52,0.00014246,2]
[332743085,1721497853419,-1283.5,0.00014246,2]
[332743086,1721497853429,-854.8,0.00014246,2]
[332743087,1721497853439,-2017.29,0.00014246,2]
[332743088,1721497853449,-500.0,0.00014246,2]
[332743089,1721497853459,-789.41,0.00014246,2]
[332743090,1721497853469,-1767.91,0.00014246,2]
[332743091,1721497853479,-909.0,0.00014246,2]
[332743092,1721497853489,-500.0,0.00014246,2]
[332743093,1721497853499,-3654.07,0.00014246,2]
[332743094,1721497853508,-1466.61,0.00014246,2]
[332743095,1721497853518,-1265.38,0.00014246,2]
[332743096,1721497853528,-500.0,0.00014246,2]
[332743097,1721497853540,-500.0,0.00014246,2]
[332743098,1721497853550,-764.96,0.00014246,2]
[332743099,1721497853563,-646.45,0.00014246,2]
[332743100,1721497853574,-1949.67,0.00014246,2]
[332743101,1721497853586,-500.0,0.00014246,2]
[332743102,1721497853598,-500.0,0.00014246,2]
[332743103,1721497853608,-1039.9,0.00014246,2]
[332743104,1721497853617,-1117.56,0.00014246,2]
[332743105,1721497853626,-500.0,0.00014246,2]
[332743106,1721497853635,-2991.06,0.00014246,2]
[332743107,1721497853645,-500.0,0.00014246,2]
[332743108,1721497853656,-500.0,0.00014246,2]
[332743109,1721497853667,-500.0,0.00014246,2]
[332743110,1721497853677,-707.28,0.00014246,2]
[332743111,1721497853688,-2347.28,0.00014246,2]
[332743112,1721497853697,-151.0,0.00014246,2]
[332743113,1721497853707,-592.04177035,0.00014246,2]
[332743114,1721497853716,-570.09,0.00014246,2]
[332743115,1721497853726,-500.0,0.00014246,2]
[332743116,1721497853735,-761.94,0.00014246,2]
[332743117,1721497853745,-620.32,0.00014246,2]
[332743118,1721497853754,-5593.47,0.00014246,2]
[332743119,1721497853763,-183.57010936,0.00014246,2]
[332743120,1721497853773,-500.0,0.00014246,2]
[332743121,1721497853782,-4567.09,0.00014246,2]
[332743122,1721497853794,-995.36,0.00014246,2]
[332743123,1721497853804,-1379.47,0.00014246,2]
[332743124,1721497853813,-500.0,0.00014246,2]
[332743125,1721497853823,-413.67578848,0.00014246,2]
[332743126,1721497853833,-767.53,0.00014246,2]
[332743127,1721497853844,-650.65,0.00014246,2]
[332743128,1721497853855,-500.0,0.00014246,2]
[332743129,1721497853864,-500.0,0.00014246,2]
[332743130,1721497853874,-570.97,0.00014246,2]
[332743131,1721497853883,-500.0,0.00014246,2]
[332743132,1721497853893,-500.0,0.00014246,2]
[332743133,1721497853902,-507.74759922,0.00014246,2]
[332743134,1721497853912,-500.0,0.00014246,2]
[332743135,1721497853921,-500.0,0.00014246,2]
[332743136,1721497853931,-650.02,0.00014246,2]
[332743137,1721497853941,-500.0,0.00014246,2]
[332743138,1721497853950,-625.58,0.00014246,2]
[332743139,1721497853960,-2362.64,0.00014246,2]
[332743140,1721497853970,-3380.18,0.00014246,2]
[332743141,1721497853979,-600.86,0.00014246,2]
[332743142,1721497853988,-1116.39,0.00014246,2]
[332743143,1721497853998,-500.0,0.00014246,2]
[332743144,1721497854008,-3604.67,0.00014246,2]
[332743145,1721497854017,-500.0,0.00014246,2]
[332743146,1721497854027,-500.0,0.00014246,2]
[332743147,1721497854036,-919.18,0.00014246,2]
[332743148,1721497854045,-500.0,0.00014246,2]
[332743149,1721497854055,-418.79387608,0.00014246,2]
[332743150,1721497854065,-504.15613984,0.00014246,2]
[332743151,1721497854074,-500.0,0.00014246,2]
[332743152,1721497854084,-1648.38,0.00014246,2]
[332743153,1721497854094,-926.86,0.00014246,2]
[332743154,1721497854103,-875.51,0.00014246,2]
[332743155,1721497854113,-9489.15,0.00014246,2]
[332743156,1721497854123,-2174.53,0.00014246,2]
[332743157,1721497854132,-1214.62,0.00014246,2]
[332743158,1721497854142,-500.0,0.00014246,2]
[332743159,1721497854151,-1869.16,0.00014246,2]
[332743160,1721497854161,-2904.71,0.00014246,2]
[332743161,1721497854170,-500.0,0.00014246,2]
[332743162,1721497854180,-500.0,0.00014246,2]
[332743163,1721497854189,-728.3,0.00014246,2]
[332743164,1721497854199,-500.0,0.00014246,2]
[332743165,1721497854209,-2956.98,0.00014246,2]
[332743166,1721497854218,-19838.68,0.00014246,2]
[332743167,1721497854228,-320.7322929,0.00014246,2]
[332743168,1721497854237,-500.0,0.00014246,2]
[332743169,1721497854247,-668.6,0.00014246,2]
[332743170,1721497854259,-467.3288532,0.00014246,2]
[332743171,1721497854273,-4150.29,0.00014246,2]
[332743172,1721497854283,-500.0,0.00014246,2]
[332743173,1721497854294,-500.0,0.00014246,2]
[332743174,1721497854305,-563.63,0.00014246,2]
[332743175,1721497854317,-678.06,0.00014246,2]
[332743176,1721497854328,-1194.93,0.00014246,2]
[332743177,1721497854341,-2983.74,0.00014246,2]
[332743178,1721497854351,-500.0,0.00014246,2]
[332743179,1721497854360,-500.0,0.00014246,2]
[332743180,1721497854370,-2074.5,0.00014246,2]
[332743181,1721497854383,-5635.33,0.00014246,2]
[332743182,1721497854394,-500.0,0.00014246,2]
[332743183,1721497854404,-500.0,0.00014246,2]
[332743184,1721497854414,-160.161879,0.00014246,2]
[332743185,1721497854424,-500.0,0.00014246,2]
[332743186,1721497854434,-503.0,0.00014246,2]
[332743187,1721497854444,-500.0,0.00014246,2]
[332743188,1721497854454,-1522.44,0.00014246,2]
[332743189,1721497854464,-640.87,0.00014246,2]
[332743190,1721497854475,-1494.32,0.00014246,2]
[332743191,1721497854487,-3232.48,0.00014246,2]
[332743192,1721497854497,-500.0,0.00014246,2]
[332743193,1721497854510,-500.0,0.00014246,2]
[332743194,1721497854522,-5598.46,0.00014246,2]
[332743195,1721497854532,-2906.76,0.00014246,2]
[332743196,1721497854542,-533.52163942,0.00014246,2]
[332743197,1721497854555,-500.0,0.00014246,2]
[332743198,1721497854564,-7644.46,0.00014246,2]
[332743199,1721497854576,-500.0,0.00014246,2]
[332743200,1721497854586,-12505.76,0.00014246,2]
[332743201,1721497854597,-522.68,0.00014246,2]
[332743202,1721497854606,-500.0,0.00014246,2]
[332743203,1721497854615,-500.0,0.00014246,2]
[332743204,1721497854625,-500.0,0.00014246,2]
[332743205,1721497854635,-150.0,0.00014246,2]
[332743206,1721497854645,-151.26439546,0.00014246,2]
[332743207,1721497854655,-500.0,0.00014246,2]
[332743208,1721497854664,-763.84,0.00014246,2]
[332743209,1721497854674,-500.0,0.00014246,2]
[332743210,1721497854684,-2957.89,0.00014246,2]
[332743211,1721497854693,-5225.95,0.00014246,2]
[332743212,1721497854703,-921.68,0.00014246,2]
[332743213,1721497854712,-500.0,0.00014246,2]
[332743214,1721497854723,-500.0,0.00014246,2]
[332743215,1721497854733,-594.855419,0.00014246,2]
[332743216,1721497854743,-594.855419,0.00014246,2]
[332743217,1721497854752,-787.83,0.00014246,2]
[332743218,1721497854761,-594.855419,0.00014246,2]
[332743219,1721497854772,-594.855419,0.00014246,2]
[332743220,1721497854781,-500.0,0.00014246,2]
[332743221,1721497854791,-500.0,0.00014246,2]
[332743222,1721497854800,-500.0,0.00014246,2]
[332743223,1721497854810,-1112.39,0.00014246,2]
[332743224,1721497854820,-622.54,0.00014246,2]
[332743225,1721497854830,-1158.27,0.00014246,2]
[332743226,1721497854840,-151.0,0.00014246,2]
[332743227,1721497854851,-298.47911728,0.00014246,2]
[332743228,1721497854860,-619.31853405,0.00014246,2]
[332743229,1721497854869,-2229.18,0.00014246,2]
[332743230,1721497854879,-2699.88,0.00014246,2]
[332743231,1721497854888,-3254.37,0.00014246,2]
[332743232,1721497854898,-1306.46,0.00014246,2]
[332743233,1721497854907,-500.0,0.00014246,2]
[332743234,1721497854916,-500.0,0.00014246,2]
[332743235,1721497854926,-500.0,0.00014246,2]
[332743236,1721497854937,-1621.66,0.00014246,2]
[332743237,1721497854950,-500.0,0.00014246,2]
[332743238,1721497854960,-500.0,0.00014246,2]
[332743239,1721497854970,-958.19,0.00014246,2]
[332743240,1721497854980,-1265.05,0.00014246,2]
[332743241,1721497854990,-500.0,0.00014246,2]
[332743242,1721497854999,-3327.88,0.00014246,2]
[332743243,1721497855009,-227.5005451,0.00014246,2]
[332743244,1721497855019,-500.0,0.00014246,2]
[332743245,1721497855028,-1518.01,0.00014246,2]
[332743246,1721497855037,-1181.76,0.00014246,2]
[332743247,1721497855046,-2365.07,0.00014246,2]
[332743248,1721497855056,-15484.19,0.00014246,2]
[332743249,1721497855066,-2182.06,0.00014246,2]
[332743250,1721497855076,-529.64,0.00014246,2]
[332743251,1721497855085,-541.32,0.00014246,2]
[332743252,1721497855096,-2687.74,0.00014246,2]
[332743253,1721497855107,-9483.67,0.00014246,2]
[332743254,1721497855116,-1803.56,0.00014246,2]
[332743255,1721497855126,-512.83003469,0.00014246,2]
[332743256,1721497855135,-10817.18,0.00014246,2]
[332743257,1721497855145,-578.19,0.00014246,2]
[332743258,1721497855154,-500.0,0.00014246,2]
[332743259,1721497855164,-500.0,0.00014246,2]
[332743260,1721497855174,-500.0,0.00014246,2]
[332743261,1721497855185,-500.0,0.00014246,2]
[332743262,1721497855194,-42495.83,0.00014246,2]
[332743263,1721497855204,-500.0,0.00014246,2]
[332743264,1721497855214,-1657.66,0.00014246,2]
[332743265,1721497855225,-678.7,0.00014246,2]
[332743266,1721497855235,-500.0,0.00014246,2]
[332743267,1721497855245,-2479.01,0.00014246,2]
[332743268,1721497855260,-56457.16808975,0.00014246,2]
[332743269,1721497855587,-4089.34191025,0.00014246,2]
[332743270,1721497855599,-500.0,0.00014246,2]
[332743271,1721497855609,-500.0,0.00014246,2]
[332743272,1721497855618,-777.9,0.00014246,2]
[332743273,1721497855627,-500.0,0.00014246,2]
[332743274,1721497855636,-500.0,0.00014246,2]
[332743275,1721497855646,-500.0,0.00014246,2]
[332743276,1721497855655,-2154.69,0.00014246,2]
[332743277,1721497855664,-3030.92,0.00014246,2]
[332743278,1721497855674,-500.0,0.00014246,2]
[332743279,1721497855683,-1022.55,0.00014246,2]
[332743280,1721497855692,-750.0,0.00014247,2]
[332743281,1721497855701,-153.0,0.00014247,2]
[332743282,1721497855710,-293.8031846,0.00014247,2]
[332743283,1721497855719,-293.8031846,0.00014247,2]
[332743284,1721497855728,-293.8031846,0.00014247,2]
[332743285,1721497855738,-150.112233,0.000143,2]
[332743286,1721497855747,-3495.08495161,0.00014303,2]
[332743287,1721497855757,-94125.05232874,0.00014314,2]
[332743288,1721497855831,-500.0,0.00013698,2]
[332743289,1721497855840,-7380.3723503,0.00014314,2]
[332743290,1721497856155,482.68,0.00010959,2]
[332743291,1721497856467,-473.81295627,0.00013698,2]
[332743293,1721497885956,267.81,0.00010959,2]
[332743294,1721497896477,223.18,0.00010959,2]
[332743295,1721497907009,643.56,0.00010959,2]
[332743296,1721497913874,300.53555783,9.999e-05,2]
[332743297,1721497917548,370.19410401,0.00010959,2]
[332743298,1721497926238,463.55528147,9.999e-05,2]
[332743299,1721497926714,155.37803303,9.999e-05,2]
[332743300,1721497938587,411.628,0.000225,30]
[332743309,1721497964899,196.15176283,9.999e-05,2]
[332743310,1721497968430,403.14060872,9.999e-05,2]
[332743311,1721497968846,154.9192016,9.999e-05,2]
[332743312,1721497969784,521.17738443,9.999e-05,2]
[332743313,1721497971723,155.21050452,9.999e-05,2]
[332743314,1721497972504,160.0,9.999e-05,2]
[332743315,1721497974299,154.79103211,9.999e-05,2]
[332743316,1721497974376,309.48934258,9.999e-05,2]
[332743317,1721497978133,726.55100361,9.999e-05,2]
[332743318,1721497980360,375.39217735,9.999e-05,2]
[332743319,1721497981271,222.87354473,9.999e-05,2]
[332743320,1721497983653,599.9748975,9.999e-05,2]
[332743321,1721497989334,518.89796857,9.999e-05,2]
[332743322,1721497992292,319.30268651,9.999e-05,2]
[332743323,1721498004623,162.3420948,9.999e-05,2]
[332743324,1721498005948,154.85288975,9.999e-05,2]
[332743325,1721498020408,663.36487868,9.999e-05,2]
[332743326,1721498022282,319.30268651,9.999e-05,2]
[332743327,1721498039080,218.06726439,9.999e-05,2]
[332743330,1721498085075,518.42535853,9.999e-05,2]
[332743331,1721498141581,218.00807775,9.999e-05,2]
[332743338,1721498558492,160.6771735,0.0002501,120]
[332743340,1721498608575,887.20196723,9.999e-05,2]
[332743341,1721498686579,1438.80679991,9.999e-05,2]
[332743343,1721498696565,885.53393627,9.999e-05,2]
[332743345,1721498751532,244.11093245,9.999e-05,2]
[332743346,1721498754255,404.21603118,9.999e-05,2]
[332743347,1721498764740,994.11273453,9.999e-05,2]
[332743348,1721498789974,635.77,0.00024,60]
[332743349,1721498790737,248.75711548,9.999e-05,2]
[332743350,1721498801687,341.5888685,9.999e-05,2]
[332743351,1721498807153,287.30766407,0.0001,2]
[332743352,1721498833345,156.12620012,9.999e-05,2]
[332743353,1721498835315,502.59148455,9.999e-05,2]
[332743354,1721498849307,404.10745492,9.999e-05,2]
[332743355,1721498852077,181.37182996,9.999e-05,2]
[332743356,1721498859092,303.09499603,9.999e-05,2]
[332743357,1721498877772,994.11273453,9.999e-05,2]
[332743358,1721498891745,248.61267026,9.999e-05,2]
[332743359,1721498898735,1648.99825908,0.00010213,2]
[332743360,1721498904786,155.44339341,9.999e-05,2]
[332743361,1721498913613,341.39098946,9.999e-05,2]
[332743363,1721498952174,154.80649189,9.999e-05,2]
[332743364,1721498958746,994.11273453,9.999e-05,2]
[332743368,1721498964193,-1871.0713694,0.00010302,2]
[332743369,1721498964216,-300.0,0.00010313,2]
[332743370,1721498964239,-300.0,0.00010313,2]
[332743371,1721498964263,-1206.4169306,0.00010314,2]
[332743372,1721498965170,154.93166857,9.999e-05,2]
[332743373,1721498968988,189.80119893,9.999e-05,2]
[332743374,1721498981071,259.23330103,9.999e-05,2]
[332743375,1721498981602,156.4037428,9.999e-05,2]
[332743404,1721499032642,-300.0,0.00010313,2]
[332743405,1721499032652,-23693.5830694,0.00010314,2]
[332743406,1721499032661,-250.0,0.00010385,2]
[332743407,1721499032671,-1392.8307515,0.0001042,2]
[332743408,1721499032680,-2060.45933365,0.00010426,2]
[332743409,1721499032698,-1124.12484445,0.00010426,2]
[332743410,1721499032707,-190.73,0.00010959,2]
[332743411,1721499032717,-442.81,0.00010959,2]
[332743412,1721499032727,-369.01,0.00010959,2]
[332743413,1721499032737,-307.51,0.00010959,2]
[332743414,1721499032746,-256.26,0.00010959,2]
[332743415,1721499032755,-213.55,0.00010959,2]
[332743416,1721499032765,-177.95,0.00010959,2]
[332743417,1721499032774,-889.8,0.00010959,2]
[332743418,1721499032783,-250.0,0.00011079,2]
[332743419,1721499033005,-33.39313659,0.00011109,2]
[332743420,1721499033019,-216.60686341,0.00011109,2]
[332743421,1721499033028,-250.0,0.00011139,2]
[332743422,1721499033037,-185.62264971,0.0001117,2]
[332743445,1721499038963,-64.37735029,0.0001117,2]
[332743446,1721499038972,-250.0,0.000112,2]
[332743447,1721499038981,-250.0,0.0001123,2]
[332743448,1721499038990,-250.0,0.00011261,2]
[332743449,1721499038999,-250.0,0.00011291,2]
[332743450,1721499039008,-250.0,0.00011322,2]
[332743451,1721499039017,-420.0,0.00011344,2]
[332743452,1721499039029,-250.0,0.00011352,2]
[332743453,1721499039039,-250.0,0.00011382,2]
[332743454,1721499039050,-250.0,0.00011413,2]
[332743455,1721499039059,-250.0,0.00011443,2]
[332743456,1721499039069,-250.0,0.00011474,2]
[332743457,1721499039079,-250.0,0.00011504,2]
[332743458,1721499039088,-250.0,0.00011534,2]
[332743459,1721499039097,-250.0,0.00011565,2]
[332743460,1721499039111,-250.0,0.00011595,2]
[332743461,1721499039120,-250.0,0.00011625,2]
[332743462,1721499039131,-250.0,0.00011656,2]
[332743463,1721499039144,-500.61107229,0.00012119,2]
[332743464,1721499039154,-992.07354016,0.0001212,2]
[332743465,1721499039164,-242.90786688,0.0001212,2]
[332743466,1721499039173,-154.76012181,0.0001212,2]
[332743467,1721499039183,-587.0,0.00012479,2]
[332743468,1721499039193,-4150.75748659,0.000129,2]
[332743469,1721499039203,-4150.75748655,0.000129,2]
[332743470,1721499039212,-343.23122269,0.00013283,2]
[332743471,1721499039221,-4150.75748655,0.00013286,2]
[332743472,1721499039231,-303.45525376,0.00013598,2]
[332743473,1721499039240,-2000.0,0.00013598,2]
[332743474,1721499039250,-396.50583459,0.000136,2]
[332743475,1721499039259,-306.0,0.00013644,2]
[332743476,1721499039269,-206.5463282,0.00013644,2]
[332743477,1721499039278,-293.8031846,0.00013644,2]
[332743478,1721499039287,-293.8031846,0.00013644,2]
[332743479,1721499039296,-244.4681184,0.00013644,2]
[332743480,1721499039307,-153.0,0.00013671,2]
[332743481,1721499039316,-153.0,0.00013671,2]
[332743482,1721499039325,-153.0,0.00013671,2]
[332743483,1721499039334,-293.8031846,0.00013671,2]
[332743484,1721499039343,-153.0,0.00013671,2]
[332743485,1721499039353,-153.0,0.00013671,2]
[332743486,1721499039362,-153.0,0.00013671,2]
[332743487,1721499039371,-153.0,0.00013671,2]
[332743488,1721499039380,-17651.4511506,0.00013688,2]
[332743489,1721499039393,-12412.605222,0.00013688,2]
[332743490,1721499039404,-21051.31692053,0.00013688,2]
[332743491,1721499039416,-39427.78109527,0.00013688,2]
[332743492,1721499039425,-500.0,0.00013698,2]
[332743493,1721499039435,-446.21890474,0.00013698,2]
[332743494,1721499039446,-71.66536883,0.00013698,2]
[332743495,1721499039455,-171.17220993,0.00013698,2]
[332743496,1721499039464,-500.0,0.00013698,2]
[332743497,1721499039474,-155.95213143,0.00013698,2]